[Event "MPL-4 Indian Chess Tour 2022"]
[Site "Chess24"]
[Date "2022.09.27"]
[Round "8.3"]
[White "Narayanan.S.L"]
[Black "Iniyan, P."]
[Result "0-1"]
[ECO "A05"]
[WhiteElo "2657"]
[BlackElo "2556"]
[Annotator "TA"]
[PlyCount "144"]
[EventDate "2022.09.29"]
[EventType "tourn (rapid)"]
[EventCountry "NET"]
[SourceTitle "playchess.com"]
[Source "ChessBase"]
[SourceQuality "1"]
[WhiteTeam "India"]
[BlackTeam "India"]
[WhiteTeamCountry "IND"]
[BlackTeamCountry "IND"]
[TimeControl "900+10"]

{[%evp 10,144,2,6,9,7,33,17,28,25,22,11,20,32,44,27,34,21,43,43,42,53,60,12,19,23,40,31,39,29,29,29,64,61,79,50,139,99,263,172,469,155,147,161,145,0,0,0,0,0,0,0,0,0,0,0,0,-18,-24,-53,-47,-44,0,0,-14,-8,0,-31,0,-8,0,-26,0,0,0,-41,0,0,0,0,0,0,0,-8,0,0,0,0,0,0,0,-63,-68,-129,-141,-262,-260,-267,-257,-462,-462,-454,-440,-462,-416,-5724,-4769,-6721,-4133,-29963,-29965,-29966,-29967,-29970,-29969,-29969,-29967,-29973,-591,-554,-544,-543,-349,-29977,-29978,-29978,-29979,-29979,-29980,-29980,-29981,-29981,-29982,-29982,-29983,-29983,-29984]} 1. Nf3 {[%emt 0:00:00]} Nf6 {[%emt 0:00:00]} 2. g3 {[%emt 0:00:03]} g6 {[%emt 0:00:04]} 3. b3 {[%emt 0:00:02]} Bg7 {[%emt 0:00:00]} 4. Bb2 {[%emt 0:00:01]} O-O {[%emt 0:00:00]} 5. Bg2 {[%emt 0:00:01]} d5 {[%emt 0:00:01]} 6. c4 {[%emt 0:00:02]} e6 {[%emt 0:00:12] A05: Réti Opening: 1 Nf3 Nf6.} 7. O-O {[%emt 0:00:06]} c5 {[%emt 0:00:01]} 8. cxd5 {[%emt 0:00:06]} (8. d4 $5 {[%cal Rd4c5]}) 8... exd5 {[%emt 0:00:00] The position is equal.} 9. d4 {[%emt 0:00:01]} b6 {[%emt 0:01:00]} 10. Nc3 {[%emt 0:00:21]} Re8 {[%emt 0:00:02]} 11. Rc1 {[%emt 0:00:06] [#]} Nbd7 $146 {[%emt 0:00:45][%cal Bb8d7,Bd7c5,Bc5e4][%mdl 32]} ({Predecessor:} 11... Ba6 12. Re1 Nbd7 13. dxc5 Nxc5 14. Rc2 Qd7 15. Rd2 Rad8 16. Qa1 Bh6 17. Rd4 Qe7 {½-½ (26) Nesic,D (2095)-Popovic,M (2138) Serbia 2006}) 12. dxc5 {[%emt 0:04:08]} Nxc5 {[%emt 0:00:00]} 13. b4 {[%emt 0:00:09]} Nce4 {[%emt 0:00:30]} 14. Nb5 {[%emt 0:00:03]} Re7 {[%emt 0:00:41] Prevents Nc7.} 15. Nfd4 {[%emt 0:00:03] And now Nc6 would win.} Bb7 {[%emt 0:00:49]} 16. e3 {[%emt 0:00:12]} (16. Nc6 $1 $14 Bxc6 17. Rxc6) 16... a6 $11 {[%emt 0:00:19]} 17. Nc3 $36 {[%emt 0:00:01][%mdl 2048] White has good play.} Qd6 {[%emt 0:02:56]} 18. Nxe4 {[%emt 0:00:06]} Nxe4 {[%emt 0:00:05]} 19. a3 {[%emt 0:00:03]} Rd8 {[%emt 0:00:09]} 20. Rc2 {[%emt 0:00:09]} h5 {[%emt 0:00:10]} 21. Qa1 {[%emt 0:00:09]} Bh6 {[%emt 0:00:37]} 22. Nf3 {[%emt 0:00:13]} g5 {[%emt 0:01:27]} ({Black should try} 22... Rc8 $14 23. Rxc8+ Bxc8) 23. Rfc1 {[%emt 0:00:34]} h4 $2 {[%emt 0:00:15]} (23... Rde8 $16) 24. Nd4 {[%emt 0:00:51]} (24. gxh4 $6 gxh4 25. Nxh4 Qe6 $16) 24... Qd7 {[%emt 0:01:27] Prevents Rc6.} (24... Qg6 25. g4 Red7) 25. Nc6 $2 {[%emt 0:00:07]} (25. Rc7 $18 {is the precise move to win.} Qxc7 26. Rxc7 Rxc7 27. Nf5) 25... Bxc6 $16 {[%emt 0:00:01]} 26. Rxc6 {[%emt 0:00:00]} Re6 {[%emt 0:00:02]} 27. Rxe6 {[%emt 0:00:12]} (27. Rc7 $16 Qd6 28. Bd4) 27... Qxe6 $11 {[%emt 0:00:03]} 28. Bd4 {[%emt 0:01:43]} h3 {[%emt 0:00:19]} 29. Bh1 {[%emt 0:00:02]} g4 {[%emt 0:00:13]} 30. Qb1 {[%emt 0:00:20]} b5 {[%emt 0:01:35]} 31. Qc2 {[%emt 0:00:32]} Nd6 {[%emt 0:00:02]} 32. Rd1 {[%emt 0:00:32]} Rc8 {[%emt 0:00:25]} 33. Qd3 {[%emt 0:01:08]} Ne4 {[%emt 0:00:11] Against Bc5} 34. f3 {[%emt 0:01:41]} gxf3 {[%emt 0:00:17]} 35. Bxf3 {[%emt 0:00:03]} Qf5 {[%emt 0:00:10]} 36. Rf1 {[%emt 0:00:22]} Rc4 {[%emt 0:01:26][%cal Oe4g3]} (36... Nxg3 37. Qxf5 Nxf5 38. Bg4 Nxd4 39. Bxc8 Bxe3+ 40. Kh1 $16) 37. Qe2 {[%emt 0:00:27]} Nc3 {[%emt 0:01:22]} 38. Qf2 {[%emt 0:00:21]} Ne4 {[%emt 0:00:08]} (38... Bg7 $5 {[%cal Rc3e4]}) 39. Qe2 {[%emt 0:00:13] Strongly threatening Bh5.} Nc3 {[%emt 0:00:05]} 40. Qf2 {[%emt 0:01:26]} Ne4 {[%emt 0:00:12]} (40... Bg7 $5 {[%cal Rc3e4]}) 41. g4 {[%emt 0:00:10]} Qg5 {[%emt 0:00:52]} 42. Qe2 {[%emt 0:00:54]} (42. Bxe4 $5 {[%cal Rf2f7]} Qxg4+ 43. Bg2 $1 (43. Kh1 $2 Qxe4+ 44. Kg1 Rxd4 $19) 43... Rxd4 44. Qxf7+ (44. exd4 $2 Be3 $19) 44... Kh8 45. Qe8+ Kh7 46. Rf7+ Bg7 47. Rxg7+ Qxg7 48. Qh5+ Kg8 49. Qe8+ Kh7 50. Qh5+ Kg8 51. Qe8+ Kh7 $11) 42... Bg7 {[%emt 0:00:01]} 43. Bxe4 {[%emt 0:00:25]} dxe4 {[%emt 0:00:00]} 44. Bxg7 {[%emt 0:00:07]} Kxg7 {[%emt 0:00:12][%mdl 4096] Endgame KQR-KQR} 45. Qb2+ {[%emt 0:00:34]} ({Much weaker is} 45. Qf2 Qxg4+ 46. Kh1 Qg2+ 47. Qxg2+ hxg2+ 48. Kxg2 Rc3 $17) 45... Kg8 {[%emt 0:01:29]} 46. Kh1 {[%emt 0:00:15]} Qxe3 {[%emt 0:00:02] ...Rc3 is the strong threat.} 47. Qf6 {[%emt 0:00:03][%csl LRa6,LRf7]} Qa7 {[%emt 0:00:01]} 48. Qg5+ {[%emt 0:00:10]} Kf8 $1 {[%emt 0:00:04]} 49. Qh6+ {[%emt 0:00:24]} Kg8 {[%emt 0:00:01]} 50. Qxh3 {[%emt 0:00:41]} (50. Rf5 $11 f6 51. Rxf6) 50... e3 $15 {[%emt 0:00:08][%cal Be4e3,Be3e2][%mdl 32] Hoping for ...e2.} 51. Qf3 {[%emt 0:00:03]} (51. Qh4 $1 $15) 51... Qe7 $17 {[%emt 0:00:01]} 52. Re1 {[%emt 0:00:42]} (52. Kg2 $17 {is a better defense.}) 52... Rc3 $1 $19 {[%emt 0:00:03]} 53. g5 {[%emt 0:00:31]} ({Reject} 53. Qa8+ Kg7 54. Qd5 Rxa3 55. Qd4+ Kg6 $19) 53... Rxa3 {[%emt 0:00:05]} 54. Qd5 $2 {[%emt 0:00:43] [#]} (54. Qc6) 54... e2 $1 {[%emt 0:01:19]} 55. g6 {[%emt 0:00:03] [#]} Re3 $1 {[%emt 0:00:01]} 56. gxf7+ {[%emt 0:00:09]} Kf8 {[%emt 0:00:01]} 57. Kg2 {[%emt 0:01:13]} (57. Qg2 $142 Qe4 58. Kg1 Kxf7 59. Qg5) 57... Qxb4 {[%emt 0:00:47]} 58. Qa8+ {[%emt 0:00:34]} Kxf7 {[%emt 0:00:02]} 59. Qd5+ {[%emt 0:00:00]} Kf6 {[%emt 0:00:51]} 60. Qc6+ {[%emt 0:00:03]} Kg7 {[%emt 0:00:13]} 61. Qd7+ {[%emt 0:00:21]} Qe7 {[%emt 0:00:02]} 62. Qg4+ {[%emt 0:00:05]} Kh6 {[%emt 0:00:07]} 63. Kf2 {[%emt 0:00:04]} Re4 {[%emt 0:00:04]} (63... Qe4 $142 64. Qxe4 Rxe4 65. Kg3 a5 66. Kf3 Re7 67. Rxe2 Rxe2 68. Kxe2 a4 69. Kd3 b4 70. Kc4 a3 71. Kb3 Kg5 72. Ka2 Kg4 73. Kb3 Kh4 74. Kc2 Kh3 75. Kb3 Kxh2 76. Kc2 Kg3 77. Kb3 Kf4 78. Kc2 Ke4 79. Kb3 Kd3 80. Ka2 Kc3 81. Kb1 b3 82. Ka1 b2+ 83. Kb1 a2+ 84. Kxa2 Kc2 85. Ka3 b1=Q 86. Ka4 Qb6 87. Ka3 Qb3#) 64. Qh3+ {[%emt 0:00:22]} Qh4+ {[%emt 0:00:02]} 65. Qxh4+ {[%emt 0:00:02]} Rxh4 {[%emt 0:00:00]} 66. Kxe2 $2 {[%emt 0:00:02] KR-KR} (66. Ra1 $19 Rxh2+ 67. Kg3 e1=Q+ 68. Rxe1) 66... Re4+ {[%emt 0:00:01] Black mates.} 67. Kd2 {[%emt 0:00:03]} Rxe1 {[%emt 0:00:00]} 68. Kxe1 {[%emt 0:00:00]} Kh5 {[%emt 0:00:01]} 69. Kd2 {[%emt 0:00:01]} Kh4 {[%emt 0:00:01]} 70. Kc3 {[%emt 0:00:00]} Kh3 {[%emt 0:00:00]} 71. Kb4 {[%emt 0:00:00]} Kxh2 {[%emt 0:00:01]} 72. Ka5 {[%emt 0:00:01]} Kg3 {[%emt 0:00:01] Black used his chance.  Weighted Error Value: White=0.62/Black=0.18 (very precise)} 0-1

[Event "MPL-4 Indian Chess Tour 2022"]
[Site "Chess24"]
[Date "2022.09.27"]
[Round "8.4"]
[White "Adhiban, B.."]
[Black "Aronyak Ghosh"]
[Result "0-1"]
[ECO "D27"]
[WhiteElo "2603"]
[BlackElo "2519"]
[Annotator "TA"]
[PlyCount "128"]
[EventDate "2022.09.29"]
[EventType "tourn (rapid)"]
[EventCountry "NET"]
[SourceTitle "playchess.com"]
[Source "ChessBase"]
[SourceQuality "1"]
[WhiteTeam "India"]
[BlackTeam "India"]
[WhiteTeamCountry "IND"]
[BlackTeamCountry "IND"]
[TimeControl "900+10"]

{[%evp 21,128,29,19,31,29,24,29,29,24,14,27,25,24,26,41,37,37,39,35,29,45,15,31,31,31,31,31,31,31,31,31,23,31,31,31,31,31,29,37,31,35,37,37,29,53,6,7,7,104,102,120,121,106,129,129,129,459,8,8,8,8,0,0,0,0,0,8,8,619,0,0,0,0,0,0,0,0,0,0,0,0,-83,-83,-83,-83,-83,-83,-29962,-29963,-29963,-29962,-29961,-29960,-29961,-29961,-29962,-29964,-29965,-29964,-29964,-29965,-29973,-29973,-29974,-29976,-29976,-29977,-29976,-29971]} 1. d4 {[%emt 0:00:00]} d5 {[%emt 0:00:00]} 2. c4 {[%emt 0:00:03]} dxc4 {[%emt 0:00:03]} 3. Nf3 {[%emt 0:00:02]} Nf6 {[%emt 0:00:01]} 4. e3 {[%emt 0:00:24]} e6 {[%emt 0:00:07]} 5. Bxc4 {[%emt 0:00:01]} c5 {[%emt 0:00:01]} 6. O-O {[%emt 0:00:06]} Nc6 {[%emt 0:00:03]} 7. a3 {[%emt 0:00:06]} a6 {[%emt 0:01:53]} 8. dxc5 {[%emt 0:00:03]} Qxd1 {[%emt 0:00:01]} 9. Rxd1 {[%emt 0:00:00]} Bxc5 {[%emt 0:00:01]} 10. b4 {[%emt 0:00:00]} Be7 {[%emt 0:02:05]} 11. Bb2 {[%emt 0:00:03]} O-O {[%emt 0:00:06]} 12. Nbd2 {[%emt 0:00:30] D27: Queen's Gambit Accepted: Classical main line: 7 e4!? and 7 a4.} Bd7 {[%emt 0:00:25]} 13. Nb3 {[%emt 0:05:32]} Rfd8 {[%emt 0:00:24]} 14. Rac1 {[%emt 0:00:01] White has an edge.} Be8 {[%emt 0:00:50]} 15. Be2 {[%emt 0:00:34][%cal Bc4e2,Be2d1,Bd1f3][%mdl 32]} Rxd1+ {[%emt 0:00:16]} 16. Bxd1 {[%emt 0:00:00] [#]} Nd7 $146 {[%emt 0:02:03]} ({Predecessor:} 16... Ne4 17. Ne1 Rd8 18. Nd4 Bf6 19. Nxc6 Bxb2 20. Nxd8 Bxc1 21. Nxb7 Bxa3 22. Nc2 Bb2 {½-½ (54) Del Rio de Angelis,S (2527)-Cifuentes Parada,R (2518) Arenal d'en Castell 2011}) 17. Nfd4 {[%emt 0:00:24]} Nde5 {[%emt 0:01:21]} 18. Nxc6 {[%emt 0:00:20]} Nxc6 {[%emt 0:00:02]} 19. Bf3 {[%emt 0:00:12]} Rd8 {[%emt 0:00:30]} 20. h3 {[%emt 0:00:47]} f6 {[%emt 0:01:41]} 21. Nd4 {[%emt 0:00:19]} Nxd4 {[%emt 0:00:04]} 22. Bxd4 {[%emt 0:00:00]} Bc6 {[%emt 0:00:41]} 23. Bxc6 {[%emt 0:00:25]} Rc8 $1 {[%emt 0:00:02][%mdl 64] [#] Pin} 24. Kf1 {[%emt 0:00:14]} Rxc6 {[%emt 0:00:02]} 25. Rxc6 {[%emt 0:00:02]} bxc6 $14 {[%emt 0:00:00][%mdl 4096] Endgame KB-KB} 26. Ke2 {[%emt 0:00:00]} Kf7 {[%emt 0:00:59]} 27. Kd3 {[%emt 0:00:03]} e5 {[%emt 0:00:08]} 28. Bb6 {[%emt 0:00:03]} Ke6 {[%emt 0:00:02]} 29. Kc4 {[%emt 0:00:02]} Kd7 {[%emt 0:00:08]} 30. Bc5 {[%emt 0:00:04]} Bd8 {[%emt 0:00:06]} 31. Bf8 {[%emt 0:00:01]} g6 {[%emt 0:00:02]} 32. Kc5 {[%emt 0:00:02]} e4 {[%emt 0:01:25]} 33. Kd4 {[%emt 0:00:28]} (33. a4 $14) 33... f5 $11 {[%emt 0:00:02]} 34. Ke5 {[%emt 0:00:12]} Bh4 {[%emt 0:00:01]} (34... h5 $11) 35. g3 $16 {[%emt 0:00:06]} Bd8 {[%emt 0:00:02]} 36. Bc5 {[%emt 0:03:56]} Bg5 {[%emt 0:01:00]} 37. h4 {[%emt 0:01:21]} Bd8 {[%emt 0:00:03]} 38. a4 {[%emt 0:00:37]} a5 $2 {[%emt 0:00:24][%mdl 8192]} (38... Bc7+ $16 {is a better chance.} 39. Kf6 Bd8+ 40. Kf7 Bc7) 39. Bf8 $2 {[%emt 0:00:14]} ({Better is} 39. bxa5 $18 Bxa5 40. Kf6) 39... Ke8 $1 $11 {[%emt 0:00:11]} 40. Bd6 {[%emt 0:00:10]} Kf7 {[%emt 0:00:24] Hoping for ...Bf6+.} 41. Kd4 {[%emt 0:01:39]} Ke6 {[%emt 0:00:04]} 42. Bf8 {[%emt 0:00:15]} h5 {[%emt 0:00:50]} 43. Bc5 {[%emt 0:00:45]} Bf6+ {[%emt 0:01:27]} 44. Kc4 {[%emt 0:00:01]} Bd8 $2 {[%emt 0:00:00][%mdl 8192] [#]} (44... axb4 $11 45. Bxb4 Kd7) 45. b5 $2 {[%emt 0:01:19]} (45. bxa5 $1 $18 {Strongly threatening a6.} Bxa5 46. Bb4) 45... Kd7 {[%emt 0:00:14]} (45... cxb5+ $2 46. Kxb5 (46. axb5 Kd7 $11) 46... Kd7 47. Bb6 $18) 46. Bd4 {[%emt 0:00:03]} g5 {[%emt 0:00:17]} 47. hxg5 {[%emt 0:00:06]} Bxg5 {[%emt 0:00:00]} 48. Bc3 {[%emt 0:00:11]} cxb5+ {[%emt 0:00:30]} 49. Kxb5 {[%emt 0:00:03]} h4 {[%emt 0:00:00]} 50. gxh4 {[%emt 0:00:06]} Bxh4 {[%emt 0:00:01]} 51. Be5 {[%emt 0:00:41]} (51. Be1 $11 {remains equal.}) 51... Bxf2 $17 {[%emt 0:00:04]} 52. Bf4 {[%emt 0:00:00]} Be1 {[%emt 0:00:05]} 53. Kc5 {[%emt 0:00:01]} Ke6 {[%emt 0:00:05] ( -> ...Kf7)} 54. Kc6 $2 {[%emt 0:00:07][%mdl 8192]} (54. Kc4 $17) 54... Kf6 {[%emt 0:00:12] Black mates.} 55. Kd5 {[%emt 0:00:04]} Bc3 {[%emt 0:00:03]} 56. Kd6 {[%emt 0:00:11]} Bd2 {[%emt 0:00:03]} 57. Kd5 {[%emt 0:00:02]} Kg6 {[%emt 0:00:01]} 58. Ke6 {[%emt 0:00:03]} Bc3 {[%emt 0:00:01]} 59. Ke7 {[%emt 0:01:28]} Kh5 {[%emt 0:00:02]} 60. Ke6 {[%emt 0:00:02]} Kg4 {[%emt 0:00:01]} 61. Bc7 {[%emt 0:00:03]} Bd2 {[%emt 0:00:08]} 62. Bb6 {[%emt 0:00:03]} f4 {[%emt 0:00:08]} 63. exf4 {[%emt 0:00:04]} Kxf4 {[%emt 0:00:00]} 64. Kd5 {[%emt 0:00:08]} e3 {[%emt 0:00:02] Both players deserved the win here.  Weighted Error Value: White=0.37/Black=0.31} 0-1

[Event "MPL-4 Indian Chess Tour 2022"]
[Site "Chess24"]
[Date "2022.09.27"]
[Round "8.5"]
[White "Karthikeyan, Murali"]
[Black "Bharath Subramaniyam H"]
[Result "1/2-1/2"]
[ECO "B92"]
[WhiteElo "2623"]
[BlackElo "2495"]
[Annotator "TA"]
[PlyCount "159"]
[EventDate "2022.09.29"]
[EventType "tourn (rapid)"]
[EventCountry "NET"]
[SourceTitle "playchess.com"]
[Source "ChessBase"]
[SourceQuality "1"]
[WhiteTeam "India"]
[BlackTeam "India"]
[WhiteTeamCountry "IND"]
[BlackTeamCountry "IND"]
[TimeControl "900+10"]

{[%evp 44,159,32,34,44,-80,54,52,76,79,116,130,120,120,221,216,211,0,0,0,0,0,0,0,47,39,52,0,12,0,0,0,0,0,0,0,0,0,0,-49,0,0,0,0,0,0,8,-14,-14,-114,-111,-354,-81,-81,-81,-81,-81,-81,-81,-81,-81,-81,-81,-81,-81,-140,-140,-140,-81,-81,-81,-81,-81,-81,-81,-81,-81,-81,-81,-81,-81,-81,-81,-81,0,-81,-8,-8,-8,-8,0,-8,-8,-10,-8,-8,-8,-8,-8,-8,-8,-8,-8,-8,-8,-8,-8,-8,-9,-9,0,0,0,-9,0,0,0,-9]} 1. e4 {[%emt 0:00:00]} c5 {[%emt 0:00:00]} 2. Nf3 {[%emt 0:00:02]} d6 {[%emt 0:00:03]} 3. d4 {[%emt 0:00:13]} cxd4 {[%emt 0:00:02]} 4. Nxd4 {[%emt 0:00:00]} Nf6 {[%emt 0:00:01]} 5. Nc3 {[%emt 0:00:01]} a6 {[%emt 0:00:15]} 6. Be2 {[%emt 0:00:52]} e5 {[%emt 0:00:20]} 7. Nb3 {[%emt 0:00:05]} Be7 {[%emt 0:00:06]} 8. Be3 {[%emt 0:00:02]} Be6 {[%emt 0:00:06]} 9. O-O {[%emt 0:00:21]} O-O {[%emt 0:00:09]} 10. Qd3 {[%emt 0:00:18]} Nbd7 {[%emt 0:00:41]} 11. Nd5 {[%emt 0:00:09]} Bxd5 {[%emt 0:00:41]} 12. exd5 {[%emt 0:00:00]} Rc8 {[%emt 0:01:01]} 13. c4 {[%emt 0:00:35]} a5 {[%emt 0:00:17]} 14. Rac1 {[%emt 0:03:20]} a4 {[%emt 0:00:26]} 15. Na1 {[%emt 0:00:49]} Nc5 {[%emt 0:00:10]} 16. Qb1 {[%emt 0:00:48]} Nfd7 {[%emt 0:01:23]} 17. b4 {[%emt 0:00:43]} axb3 {[%emt 0:00:05]} 18. axb3 {[%emt 0:00:01]} Bg5 {[%emt 0:00:42]} 19. Bxg5 {[%emt 0:01:09]} Qxg5 {[%emt 0:00:03]} 20. b4 {[%emt 0:00:02]} Na6 {[%emt 0:00:22]} 21. Qb2 {[%emt 0:04:36]} e4 {[%emt 0:02:22]} 22. Nc2 {[%emt 0:01:18]} Ne5 {[%emt 0:00:07]} 23. Nd4 {[%emt 0:00:11]} Nc7 {[%emt 0:01:36]} 24. Qb3 {[%emt 0:00:50] [#]} (24. Qb1 $14) 24... Ng6 {[%emt 0:01:11]} (24... Nxd5 $1 $17 {Strongly threatening ...Nf4.} 25. h4 Qh6) 25. Qg3 $14 {[%emt 0:00:48]} Qd2 {[%emt 0:00:13]} 26. Rfd1 {[%emt 0:00:13]} Qxb4 {[%emt 0:00:07]} 27. Rb1 {[%emt 0:00:46]} Qc5 {[%emt 0:00:16]} 28. Nf5 {[%emt 0:00:35]} Rcd8 {[%emt 0:00:46]} (28... Ne8 $16 {was necessary.}) 29. h4 $1 $18 {[%emt 0:00:35]} ({Resist} 29. Rxb7 $6 Ne8 $16) 29... Ne8 {[%emt 0:00:37]} 30. Rxb7 $2 {[%emt 0:00:14]} (30. h5 $1 $18 {[%cal Rh5g6]} Ne5 31. Rb5 (31. Rxb7 Ra8 $18)) 30... Qc8 $11 {[%emt 0:00:31]} 31. Ne7+ {[%emt 0:00:12]} Nxe7 {[%emt 0:00:02]} 32. Rxe7 {[%emt 0:00:00]} Nf6 {[%emt 0:00:04]} 33. Rb1 {[%emt 0:00:26]} Rd7 {[%emt 0:00:32]} (33... Qa6 $11 {feels stronger.}) 34. Rxd7 $14 {[%emt 0:00:07]} Qxd7 {[%emt 0:00:01]} 35. Qf4 {[%emt 0:00:04]} Qc7 {[%emt 0:00:46]} 36. g4 {[%emt 0:00:05]} Re8 {[%emt 0:00:07]} 37. g5 {[%emt 0:00:10]} Nd7 {[%emt 0:00:02]} 38. h5 {[%emt 0:00:03]} e3 {[%emt 0:00:16]} 39. fxe3 {[%emt 0:00:06]} Qa7 {[%emt 0:00:36]} 40. Kf2 {[%emt 0:00:28]} Nc5 {[%emt 0:00:08]} 41. Rf1 {[%emt 0:00:16]} (41. h6 $11 {should be considered.}) 41... Ne4+ {[%emt 0:00:17]} (41... Re5 $1 $15) 42. Kg2 $11 {[%emt 0:00:15]} Qe7 {[%emt 0:00:39]} 43. g6 {[%emt 0:00:05]} hxg6 {[%emt 0:00:15]} 44. hxg6 {[%emt 0:00:02]} fxg6 {[%emt 0:00:03]} 45. Bg4 {[%emt 0:00:13]} Nc5 {[%emt 0:00:16]} 46. Bf3 {[%emt 0:00:31]} (46. Qg3 $11) 46... Nd3 $1 $17 {[%emt 0:00:33]} 47. Qd4 $2 {[%emt 0:00:08]} (47. Qg3 $17 {is the only way for White.}) 47... Qxe3 $2 {[%emt 0:00:28]} (47... Qg5+ $19 {has better winning chances.} 48. Bg4 Rxe3 49. Qxe3 Qxe3 50. Be6+ Kh7 51. Rh1+ Qh6 $3 {[%mdl 512]}) 48. Qxe3 $17 {[%emt 0:00:02]} Rxe3 {[%emt 0:00:01]} 49. Bg4 {[%emt 0:00:01]} Nc5 {[%emt 0:00:14]} 50. Be6+ {[%emt 0:00:20]} Nxe6 {[%emt 0:00:04]} 51. dxe6 {[%emt 0:00:00]} Rxe6 {[%emt 0:00:09]} 52. Rd1 {[%emt 0:00:01]} Kf7 {[%emt 0:00:31]} 53. Rd5 {[%emt 0:00:02]} Kf6 {[%emt 0:00:16]} 54. c5 {[%emt 0:00:01]} ({White should play} 54. Kf3) 54... dxc5 $17 {[%emt 0:00:01]} ({Reject} 54... Re2+ $6 55. Kf3 Re6 56. cxd6 $11) 55. Rxc5 {[%emt 0:00:00] [#]} g5 {[%emt 0:00:03]} (55... Re3 $142 $1) 56. Kf3 $17 {[%emt 0:00:09]} Re5 {[%emt 0:00:11]} 57. Rc8 {[%emt 0:00:03]} Rf5+ {[%emt 0:00:09]} 58. Kg4 {[%emt 0:00:03]} Rf4+ {[%emt 0:00:02]} 59. Kg3 {[%emt 0:00:01]} Kg6 {[%emt 0:00:04]} 60. Rb8 {[%emt 0:00:01]} Rd4 {[%emt 0:00:08]} 61. Ra8 {[%emt 0:00:02]} Re4 {[%emt 0:00:14]} 62. Rb8 {[%emt 0:00:06]} Re6 {[%emt 0:00:06]} 63. Ra8 {[%emt 0:00:20]} Re4 {[%emt 0:00:11]} 64. Rb8 $1 {[%emt 0:00:02]} g4 {[%emt 0:00:01]} (64... Rc4 $17) 65. Rb5 $1 $11 {[%emt 0:00:01]} Kf6 {[%emt 0:00:01]} 66. Ra5 $1 {[%emt 0:00:02]} Kg6 {[%emt 0:00:13]} 67. Rb5 {[%emt 0:00:02]} Kh6 {[%emt 0:00:01]} 68. Ra5 {[%emt 0:00:01]} g6 {[%emt 0:00:11]} 69. Rb5 $1 {[%emt 0:00:02]} Rc4 {[%emt 0:00:02]} 70. Ra5 {[%emt 0:00:02]} Kg7 {[%emt 0:00:07]} 71. Rb5 $1 {[%emt 0:00:03]} Re4 {[%emt 0:00:02]} 72. Ra5 {[%emt 0:00:01]} Kf6 {[%emt 0:00:05]} 73. Rb5 {[%emt 0:00:03]} g5 {[%emt 0:00:09]} 74. Rb8 {[%emt 0:00:01]} Kf5 {[%emt 0:00:07]} 75. Rf8+ {[%emt 0:00:09]} Kg6 {[%emt 0:00:01]} 76. Rg8+ {[%emt 0:00:01]} Kh5 {[%emt 0:00:01]} 77. Rh8+ {[%emt 0:00:00]} Kg6 {[%emt 0:00:01]} 78. Rg8+ {[%emt 0:00:01]} Kf5 {[%emt 0:00:05]} 79. Rf8+ {[%emt 0:00:01]} Kg6 {[%emt 0:00:01]} 80. Rg8+ {[%emt 0:00:01]} 1/2-1/2